bitfinex/quotes_ETHUSD_20240718
["timestamp","ask_amount","ask_price","bid_price","bid_amount"]
[1721284952103,0.1479594,3443.4,3443.2,2.3404]
[1721284952255,0.1479594,3443.4,3443.3,5.80838]
[1721284952454,0.1479594,3443.4,3443.3,2.90419]
[1721284953087,0.1479594,3443.4,3442.7,2.3404]
[1721284953274,0.829,3443.2,3442.4,3.0]
[1721284953586,0.9769594,3443.4,3442.5,2.90486]
[1721284953767,0.9769594,3443.4,3442.6,3.0]
[1721284953948,0.9769594,3443.4,3442.6,3.09765556]
[1721284954390,0.9769594,3443.4,3442.8,2.9046]
[1721284954785,0.9769594,3443.4,3442.9,3.0]
[1721284954964,0.9769594,3443.4,3442.9,3.09765556]
[1721284956485,1.60370034,3443.4,3442.9,3.09765556]
[1721284956709,1.60370034,3443.4,3442.9,0.09765556]
[1721284956850,0.829,3443.0,3442.9,0.09765556]
[1721284957054,0.829,3443.0,3442.5,2.90486]
[1721284957280,0.829,3443.0,3442.9,0.09453333]
[1721284957467,0.829,3443.0,3442.5,2.90486]
[1721284957663,0.829,3443.0,3442.9,0.09453333]
[1721284957867,0.829,3443.0,3442.5,2.90486]
[1721284958067,0.829,3443.0,3442.9,0.09453333]
[1721284958266,0.829,3443.0,3442.5,2.90486]
[1721284958790,2.4082,3443.0,3442.6,0.09453333]
[1721284959085,2.64902,3443.0,3442.6,0.09453333]
[1721284959464,2.64902,3443.0,3442.4,3.0]
[1721284959666,0.829,3442.9,3442.4,5.90494]
[1721284959872,0.829,3442.9,3442.5,0.08812703]
[1721284960571,0.24082,3443.0,3442.5,0.08812703]
[1721284961474,0.829,3442.9,3442.5,0.08812703]
[1721284963491,0.829,3442.7,3442.3,3.0]
[1721284963796,0.829,3442.7,3442.6,0.08812703]
[1721284964089,0.829,3442.7,3442.3,3.0]
[1721284964257,0.829,3442.7,3442.6,0.08518946]
[1721284964701,0.829,3442.7,3442.1,3.0]
[1721284964998,0.24082,3443.0,3442.6,0.08518946]
[1721284965162,0.829,3442.7,3442.6,0.08518946]
[1721284965493,0.829,3442.7,3442.1,3.0]
[1721284965669,0.829,3442.7,3442.6,0.08518946]
[1721284966002,1.226443,3442.7,3442.6,0.08518946]
[1721284966188,1.226443,3442.7,3442.1,3.0]
[1721284966389,0.397443,3442.7,3442.6,0.08518946]
[1721284966698,1.226443,3442.7,3442.1,5.90519]
[1721284966898,3.14534,3443.0,3442.6,0.08518946]
[1721284967099,0.829,3442.7,3442.6,0.08518946]
[1721284967289,0.829,3442.7,3442.1,5.90519]
[1721284967802,2.90429,3443.2,3442.3,2.90502]
[1721284968009,0.829,3442.9,3442.3,2.90502]
[1721284968807,0.829,3442.7,3442.2,2.9051]
[1721284969308,0.829,3442.7,3442.1,3.0]
[1721284969507,0.829,3442.2,3442.1,3.0]
[1721284969812,5.19461,3442.7,3441.8,2.90544]
[1721284969974,0.829,3442.3,3442.1,0.08549748]
[1721284970180,0.829,3442.3,3441.8,2.90544]
[1721284970373,0.829,3442.3,3442.2,0.08550102]
[1721284970599,0.829,3442.3,3441.9,2.90535]
[1721284970909,0.829,3442.3,3442.2,0.08550102]
[1721284971207,0.9928921,3442.3,3442.2,0.08550102]
[1721284971408,0.829,3442.3,3441.7,2.90551]
[1721284971614,0.829,3442.3,3442.2,0.08550102]
[1721284971814,0.829,3442.3,3441.8,2.90545]
[1721284972015,0.829,3442.3,3442.2,0.08550102]
[1721284972201,0.829,3442.3,3441.8,2.90545]
[1721284972397,0.829,3442.3,3442.2,0.08550102]
[1721284972600,0.829,3442.3,3441.8,2.90545]
[1721284972913,0.829,3442.3,3442.2,0.08550102]
[1721284973376,0.829,3442.3,3441.8,3.720207]
[1721284973574,0.829,3442.3,3442.2,0.08550102]
[1721284973814,0.829,3442.3,3441.8,3.720207]
[1721284974008,0.829,3442.3,3442.2,0.08550102]
[1721284974221,2.90479,3442.6,3441.8,3.720207]
[1721284974376,0.829,3442.5,3442.2,0.08550102]
[1721284974575,0.829,3442.5,3441.9,2.90533]
[1721284974814,0.829,3442.5,3442.3,0.08550102]
[1721284975299,0.829,3442.5,3442.0,2.3598]
[1721284975530,5.30914,3443.0,3442.4,0.08550102]
[1721284975531,0.829,3442.7,3442.4,0.08550102]
[1721284975701,0.829,3442.7,3442.1,2.90519]
[1721284975895,0.829,3442.7,3442.3,2.90502]
[1721284976118,0.829,3442.7,3442.3,3.719777]
[1721284976497,0.829,3442.7,3442.4,0.08550102]
[1721284980932,0.829,3442.7,3442.2,2.9051]
[1721284981135,2.90436,3443.1,3442.2,2.9051]
[1721284981335,2.90436,3443.1,3442.0,5.26508]
[1721284981336,0.83271772,3442.7,3442.3,2.99054579]
[1721284982037,0.83271772,3442.7,3442.3,3.81609837]
[1721284982240,0.00371772,3442.7,3442.5,2.90486]
[1721284982547,0.00371772,3442.7,3442.6,5.18568]
[1721284982835,0.00371772,3442.7,3442.6,5.27120579]
[1721284983435,0.00371772,3442.7,3442.6,8.17598579]
[1721284983635,0.00371772,3442.7,3442.6,8.59752927]
[1721284987340,0.00371772,3442.7,3442.6,11.95107037]
[1721284988197,0.00371772,3442.7,3442.6,14.95107037]
[1721284988400,0.00371772,3442.7,3442.6,13.0301969]
[1721284988735,0.00371772,3442.7,3442.6,17.8556886]
[1721284989535,0.00371772,3442.7,3442.6,18.45907498]
[1721284991536,0.00371772,3442.7,3442.6,17.63007498]
[1721284991707,0.00371772,3442.7,3442.6,14.1219086]
[1721284991906,0.00371772,3442.7,3442.6,14.72529498]
[1721284992223,0.00371772,3442.7,3442.6,14.1219086]
[1721284994369,0.00371772,3442.7,3442.6,11.84104085]
[1721284994830,0.00371772,3442.7,3442.6,14.21824085]
[1721284997229,0.00371772,3442.7,3442.6,12.7035939]
[1721284997434,0.00371772,3442.7,3442.6,14.21823726]
[1721284997809,0.00371772,3442.7,3442.6,11.69382927]
[1721284998147,0.00371772,3442.7,3442.6,14.21824163]
[1721285000504,0.00371772,3442.7,3442.6,11.69382927]
[1721285000708,0.00371772,3442.7,3442.6,14.21821202]
[1721285000907,0.00371772,3442.7,3442.6,23.92277202]
[1721285001107,1e-08,3442.7,3442.6,27.45049228]
[1721285001316,1e-08,3442.7,3442.6,31.45049228]
[1721285002242,1e-08,3442.7,3442.6,32.60549228]
[1721285002418,1e-08,3442.7,3442.6,33.60738376]
[1721285003224,1e-08,3442.7,3442.6,36.51216376]
[1721285003439,0.1479594,3443.4,3443.3,14.25717]
[1721285003745,0.1479594,3443.4,3443.3,21.60645636]
[1721285003945,0.1479594,3443.4,3443.3,21.69135561]
[1721285004115,0.1479594,3443.4,3443.3,23.17711534]
[1721285004453,0.1479594,3443.4,3443.3,23.17711268]
[1721285004826,0.1479594,3443.4,3443.3,19.17711268]
[1721285005921,0.1479594,3443.4,3443.3,13.20692268]
[1721285006135,0.1479594,3443.4,3443.3,10.72832268]
[1721285006339,0.1479594,3443.4,3443.3,5.98908925]
[1721285006522,0.1479594,3443.4,3443.3,0.08489925]
[1721285006724,0.1479594,3443.4,3443.2,2.90426]
[1721285006927,0.1479594,3443.4,3443.0,2.90439]
[1721285007141,0.1479594,3443.4,3443.3,0.08489925]
[1721285007360,0.1479594,3443.4,3442.9,2.90452]
[1721285007519,0.1479594,3443.4,3443.3,0.08489925]
[1721285007719,0.1479594,3443.4,3442.7,2.90468]
[1721285007917,0.1479594,3443.4,3442.8,4.0]
[1721285008148,0.1479594,3443.4,3442.8,2.98949925]
[1721285008344,0.1479594,3443.4,3442.9,2.90449]
[1721285008851,0.1479594,3443.4,3443.0,0.08489925]
[1721285010153,0.1479594,3443.4,3443.3,2.90419]
[1721285010350,0.1479594,3443.4,3443.3,3.49354193]
[1721285010848,0.1479594,3443.4,3443.3,3.57844118]
[1721285012737,0.1479594,3443.4,3443.3,6.48263118]
[1721285014939,1e-08,3443.4,3443.3,9.48263118]
[1721285015136,1e-08,3443.4,3443.3,10.49217358]
[1721285015459,1e-08,3443.4,3443.3,12.75047358]
[1721285015978,1e-08,3443.4,3443.3,11.74093118]
[1721285016138,1e-08,3443.4,3443.3,14.64512118]
[1721285016466,1e-08,3443.4,3443.3,18.64512118]
[1721285018677,1e-08,3443.4,3443.3,13.48263118]
[1721285019485,1e-08,3443.4,3443.3,9.48263118]
[1721285021968,1e-08,3443.4,3443.3,11.74013118]
[1721285022176,1e-08,3443.4,3443.3,12.74974056]
[1721285022349,1e-08,3443.4,3443.3,11.74013118]
[1721285022545,1e-08,3443.4,3443.3,12.749663]
[1721285022762,1e-08,3443.4,3443.3,12.74965049]
[1721285023154,1e-08,3443.4,3443.3,14.64432118]
[1721285024462,1e-08,3443.4,3443.3,15.65387984]
[1721285024661,1e-08,3443.4,3443.3,12.74968984]
[1721285025465,1e-08,3443.4,3443.3,11.74013118]
[1721285025775,1e-08,3443.4,3443.3,14.64432118]
[1721285025985,1e-08,3443.4,3443.3,17.16820845]
[1721285026185,0.0488985,3444.2,3444.1,2.90351]
[1721285026543,0.0488985,3444.2,3444.1,2.98514357]
[1721285030304,0.0488985,3444.2,3444.1,3.57402593]
[1721285032753,0.0488985,3444.2,3444.1,2.98514357]
[1721285032950,0.0488985,3444.2,3444.1,0.08163357]
[1721285033377,0.0488985,3444.2,3443.7,5.90384]
[1721285033677,0.0488985,3444.2,3443.8,0.08156282]
[1721285033883,0.0488985,3444.2,3443.7,5.90384]
[1721285034363,0.0488985,3444.2,3443.8,0.08156282]
[1721285034565,0.0488985,3444.2,3443.7,6.78463]
[1721285034948,0.0488985,3444.2,3443.8,0.08156282]
[1721285035154,0.0488985,3444.2,3443.8,2.90376]
[1721285035391,0.0488985,3444.2,3443.9,3.08156282]
[1721285036577,0.0488985,3444.2,3443.9,6.35150888]
[1721285039161,0.0488985,3444.2,3443.9,8.69060888]
[1721285039356,0.0488985,3444.2,3443.9,6.35150888]
[1721285042462,0.0488985,3444.2,3444.1,2.90351]
[1721285043252,0.0488985,3444.2,3444.1,2.98509049]
[1721285043365,0.0488985,3444.2,3444.1,3.86588049]
[1721285044390,0.0488985,3444.2,3444.1,2.98509049]
[1721285044800,0.0488985,3444.2,3444.1,0.08158049]
[1721285044966,2.4886985,3444.2,3444.1,0.08158049]
[1721285045298,2.4886985,3444.2,3444.1,0.08154158]
[1721285045631,2.4886985,3444.2,3443.8,5.90375]
[1721285045930,0.0488985,3444.2,3443.9,0.08154158]
[1721285048172,0.0488985,3444.2,3444.1,2.90351]
[1721285048367,0.0488985,3444.2,3444.1,2.98505158]
[1721285055799,0.0488985,3444.2,3444.1,0.08154158]
[1721285056002,0.0488985,3444.2,3443.8,5.90376]
[1721285056184,0.0488985,3444.2,3444.0,2.90354]
[1721285056700,0.0488985,3444.2,3444.1,0.08152034]
[1721285057566,0.0488985,3444.2,3443.8,5.90376]
[1721285057994,0.0488985,3444.2,3443.9,0.08152034]
[1721285066123,0.8748985,3444.2,3443.9,0.08152034]
[1721285069313,3.3394985,3444.2,3443.9,0.08152034]
[1721285069517,3.3394985,3444.2,3443.9,3.08152034]
[1721285069723,3.3394985,3444.2,3443.9,0.08152034]
[1721285071695,6.26444656,3444.2,3443.9,0.08152034]
[1721285071898,8.9002,3444.0,3443.9,0.08152034]
[1721285072092,8.07436,3443.9,3443.8,0.003205]
[1721285072323,9.33771372,3443.9,3443.8,0.07955882]
[1721285072507,10.41397494,3443.9,3443.8,0.003205]
[1721285072718,10.41397494,3443.9,3443.8,0.07955882]
[1721285072922,10.41401853,3443.9,3443.8,0.003205]
[1721285073098,10.41401853,3443.9,3443.8,0.07955882]
[1721285073302,6.54668,3443.9,3443.8,0.07955882]
[1721285073504,2.267,3443.9,3443.8,0.07955882]
[1721285073733,3.093,3443.9,3443.8,0.003205]
[1721285073933,0.826,3443.9,3443.8,0.003205]
[1721285074712,0.826,3443.9,3443.8,0.07955882]
[1721285074909,0.826,3443.9,3443.8,0.003205]
[1721285075113,0.826,3443.9,3443.8,0.07955882]
[1721285076020,0.826,3443.9,3443.8,0.003205]
[1721285076225,2.9036,3444.0,3443.8,0.07955882]
[1721285076429,0.826,3443.9,3443.8,0.07955882]
[1721285080939,0.0488985,3444.2,3443.8,0.07955882]
[1721285081148,0.8748985,3444.2,3443.8,0.6096757]
[1721285082552,0.826,3444.0,3443.8,0.6096757]
[1721285083059,0.0488985,3444.2,3443.8,0.6096757]
[1721285083224,0.826,3444.0,3443.8,0.6096757]
[1721285083425,0.826,3444.0,3443.9,0.71697918]
[1721285083848,0.826,3444.0,3443.9,0.793333]
[1721285084434,0.8748985,3444.2,3443.9,0.793333]
[1721285086880,0.826,3444.0,3443.9,0.07635382]
[1721285091232,0.0488985,3444.2,3443.9,0.07635382]
[1721285091438,0.826,3444.1,3443.9,0.07635382]
[1721285095345,0.826,3444.1,3443.9,2.98002382]
[1721285095552,0.0488985,3444.2,3443.9,2.98002382]
[1721285095867,0.0488985,3444.2,3444.1,2.2964]
[1721285096566,0.0488985,3444.2,3444.1,2.37016422]
[1721285098165,0.0488985,3444.2,3444.1,5.27367422]
[1721285101079,0.0488985,3444.2,3444.1,11.17718422]
[1721285101251,0.0488985,3444.2,3444.1,12.18658698]
[1721285101450,7.34,3445.6,3444.1,12.18658698]
[1721285101451,2.90193,3446.0,3445.3,2.3425]
[1721285101780,0.826,3445.5,3445.0,2.90272]
[1721285102000,0.826,3445.5,3445.1,2.3425]
[1721285102278,2.90193,3446.0,3445.1,2.41615479]
[1721285102444,2.90193,3446.0,3445.1,5.31877479]
[1721285102639,2.90203,3445.9,3445.1,2.41615479]
[1721285102872,2.90208,3445.8,3445.1,0.07365479]
[1721285103072,5.38617,3445.7,3445.1,0.07365479]
[1721285103397,5.38617,3445.7,3445.2,0.07365479]
[1721285103881,5.38617,3445.7,3444.9,3.0]
[1721285103882,2.90225,3445.6,3444.9,3.0]
[1721285104047,2.90225,3445.6,3445.3,0.07365479]
[1721285104249,0.736825,3445.5,3444.9,3.0]
[1721285104591,2.90225,3445.6,3444.8,5.4978]
[1721285104780,2.90225,3445.6,3445.0,0.07328073]
[1721285105075,2.90225,3445.6,3444.9,3.0]
[1721285105277,2.90225,3445.6,3445.1,0.07328073]
[1721285105455,2.90225,3445.6,3444.8,5.4978]
[1721285105456,2.90225,3445.6,3444.9,3.0]
[1721285105779,2.90225,3445.6,3444.8,5.4978]
[1721285105946,1.027025,3445.6,3445.0,0.07328073]
[1721285106277,2.90251,3445.3,3445.1,0.07328073]
[1721285106667,2.90251,3445.3,3444.5,5.90317]
[1721285107291,2.90251,3445.3,3444.6,0.07328073]
[1721285111184,2.90234,3445.5,3444.8,2.4678]
[1721285111492,2.90261,3445.2,3444.7,2.4556]
[1721285111968,2.90261,3445.2,3444.8,0.07328073]
[1721285112580,2.90261,3445.2,3444.9,0.07328073]
[1721285112785,3.5424684,3445.2,3444.7,2.4556]
[1721285112986,3.5424684,3445.2,3445.0,0.07328073]
[1721285113156,3.5424684,3445.2,3444.7,2.4556]
[1721285113486,2.90261,3445.2,3445.1,0.07328073]
[1721285113978,2.90261,3445.2,3444.7,2.4556]
[1721285114279,2.90261,3445.2,3445.1,0.07328073]
[1721285114449,2.90261,3445.2,3444.7,2.4556]
[1721285114645,2.90244,3445.4,3445.1,0.07328073]
[1721285114873,2.90244,3445.4,3444.7,2.4556]
[1721285115093,2.90244,3445.4,3445.2,0.07328073]
[1721285115278,2.90244,3445.4,3444.7,2.4556]
[1721285115477,2.90244,3445.4,3445.3,0.07328073]
[1721285115650,3.235808,3445.4,3444.7,2.4556]
[1721285115849,3.235808,3445.4,3445.3,0.07328073]
[1721285115850,2.90244,3445.4,3445.3,0.07328073]
[1721285116053,2.90244,3445.4,3444.7,2.4556]
[1721285116287,2.90244,3445.4,3445.3,0.07328073]
[1721285116489,2.90244,3445.4,3444.7,2.4556]
[1721285116666,2.90244,3445.4,3445.3,0.07333716]
[1721285116882,3.37471586,3445.4,3445.2,0.31018062]
[1721285117203,3.37471586,3445.4,3445.3,0.07333716]
[1721285117402,3.92471586,3445.4,3445.2,0.31018062]
[1721285117587,3.92471586,3445.4,3445.3,0.07333716]
[1721285117899,3.92471586,3445.4,3445.2,0.31018062]
[1721285118056,3.92471586,3445.4,3445.3,0.07333716]
[1721285118258,3.92471586,3445.4,3445.2,0.31018062]
[1721285118484,3.92471586,3445.4,3445.3,0.07333716]
[1721285118785,3.92471586,3445.4,3445.2,0.31018062]
[1721285118981,3.45244,3445.4,3445.3,0.07333716]
[1721285119208,3.45244,3445.4,3445.2,0.31018062]
[1721285119403,3.45244,3445.4,3445.3,0.07333716]
[1721285119698,3.45244,3445.4,3445.2,2.64798062]
[1721285119904,3.45244,3445.4,3445.3,0.07333716]
[1721285120598,3.45244,3445.4,3445.2,2.64798062]
[1721285120799,3.45244,3445.4,3445.3,0.07333716]
[1721285121184,3.45244,3445.4,3445.2,2.64798062]
[1721285121537,3.45244,3445.4,3445.3,0.07333716]
[1721285121885,3.45244,3445.4,3445.2,2.64798062]
[1721285122289,3.45244,3445.4,3445.3,0.07333716]
[1721285122606,3.45244,3445.4,3445.2,2.64798062]
[1721285122925,0.826,3445.3,3445.2,2.64798062]
[1721285124214,0.826,3445.3,3445.2,0.31018062]
[1721285125622,3.45244,3445.4,3445.2,0.31018062]
[1721285125817,0.826,3445.3,3445.2,0.31018062]
[1721285127234,3.45244,3445.4,3445.2,0.31018062]
[1721285127411,0.826,3445.3,3445.2,0.31018062]
[1721285128895,2.90216,3445.8,3445.2,0.31018062]
[1721285129097,0.826,3445.3,3445.2,0.31018062]
[1721285129309,2.90216,3445.8,3445.2,0.63146368]
[1721285129514,0.826,3445.4,3445.3,2.2889]
[1721285132154,0.826,3445.4,3445.2,0.31018062]
[1721285132297,3.72842,3445.4,3445.2,0.31018062]
[1721285132502,2.9025,3445.3,3445.2,0.31018062]
[1721285132698,4.362712,3445.3,3445.2,0.31018062]
[1721285134749,5.188712,3445.3,3445.2,0.31018062]
[1721285134912,5.188712,3445.3,3445.2,0.38055813]
[1721285134913,4.2785,3445.3,3445.2,0.38055813]
[1721285135339,3.4525,3445.3,3445.2,0.38055813]
[1721285135956,4.2785,3445.3,3445.2,0.38055813]
[1721285138955,4.2785,3445.3,3445.2,2.81235813]
[1721285139329,4.2785,3445.3,3445.2,0.38055813]
[1721285140359,3.7285,3445.3,3445.2,0.38055813]
[1721285141358,4.631745,3445.3,3445.2,0.38055813]
[1721285143365,3.805745,3445.3,3445.2,0.38055813]
[1721285143550,3.7285,3445.3,3445.2,0.38055813]
[1721285144632,3.7285,3445.3,3445.2,0.07037751]
[1721285144985,2.90259,3445.2,3444.6,2.3472]
[1721285145265,0.826,3444.9,3444.6,2.3472]
[1721285147984,0.826,3444.7,3444.2,0.6025288]
[1721285148261,2.9035,3444.2,3443.8,0.003205]
[1721285148469,0.826,3444.3,3443.8,0.003205]
[1721285148470,0.826,3443.9,3443.8,0.003205]
[1721285149844,3.72968,3443.9,3443.8,0.003205]
[1721285150039,4.393009,3443.9,3443.8,0.06428987]
[1721285150242,3.567009,3443.9,3443.8,0.003205]
[1721285150770,2.90368,3443.9,3443.8,0.003205]
[1721285153854,2.90368,3443.9,3443.8,0.06428987]
[1721285155762,5.80736,3443.9,3443.8,0.06428987]
[1721285155968,8.68036,3443.9,3443.8,0.003205]
[1721285156288,9.746896,3443.9,3443.8,0.003205]
[1721285156707,12.650576,3443.9,3443.8,0.003205]
[1721285160272,15.554256,3443.9,3443.8,0.003205]
[1721285161250,15.554256,3443.9,3442.1,2.2941]
[1721285161251,2.90488,3442.5,3442.1,2.2941]
[1721285161754,2.90488,3442.5,3442.2,0.061786]
[1721285162201,2.90488,3442.5,3442.1,2.2941]
[1721285162368,2.90488,3442.5,3442.2,0.061786]
[1721285163156,2.9047,3442.7,3442.2,0.061786]
[1721285163654,2.90463,3442.8,3442.2,0.2973746]
[1721285165258,1.985,3443.0,3442.2,0.061786]
[1721285165477,0.55,3442.9,3442.2,0.061786]
[1721285165985,2.90487,3442.5,3442.2,0.061786]
[1721285169505,2.90495,3442.4,3442.2,0.061786]
[1721285169809,2.90478,3442.6,3442.2,0.061786]
[1721285169810,2.90503,3442.3,3442.2,0.061786]
[1721285170001,2.90503,3442.3,3441.8,2.4622]
[1721285170312,2.90503,3442.3,3441.9,0.06291375]
[1721285172287,2.9049,3442.5,3441.9,0.06291375]
[1721285173093,2.90458,3442.9,3442.0,5.28876]
[1721285173386,5.80929,3442.8,3442.1,0.0629596]
[1721285173691,1.985,3443.1,3442.1,0.0629596]
[1721285173904,2.90485,3442.6,3442.1,0.0629596]
[1721285174293,3.8395,3443.0,3442.1,0.0629596]
[1721285174294,2.90487,3442.5,3442.1,0.0629596]
[1721285175586,2.90511,3442.2,3442.0,2.3835]
[1721285175822,2.90511,3442.2,3442.1,0.06293491]
[1721285176718,2.90521,3442.1,3441.7,2.338]
[1721285180036,2.90521,3442.1,3441.8,0.06304777]
[1721285180528,0.828,3441.9,3441.8,0.06304777]
[1721285181335,0.828,3442.1,3441.9,2.423]
[1721285181637,0.828,3442.6,3442.1,2.90515]
[1721285181943,2.90437,3443.1,3442.1,2.90515]
[1721285181944,8.168,3443.2,3442.5,2.423]
[1721285182233,2.90421,3443.3,3442.5,2.423]
[1721285182446,2.90421,3443.3,3442.6,0.06316062]
[1721285182648,2.90405,3443.5,3442.6,0.06316062]
[1721285182944,2.90405,3443.5,3442.8,0.31049055]
[1721285183249,2.90405,3443.5,3442.9,0.06295257]
[1721285183948,2.90405,3443.5,3443.0,2.423]
[1721285184318,2.90405,3443.5,3443.1,0.06294905]
[1721285184749,2.90385,3443.7,3443.1,0.06294905]
[1721285185518,2.90369,3443.9,3443.1,0.52448651]
[1721285185725,2.90378,3443.8,3443.1,0.52448651]
[1721285186619,2.9036,3444.0,3443.1,0.52448651]
[1721285186925,2.9036,3444.0,3443.1,3.42877651]
[1721285187326,2.9036,3444.0,3443.2,2.90424]
[1721285187543,2.9036,3444.0,3443.2,3.44118254]
[1721285187852,2.9036,3444.0,3443.3,0.06294905]
[1721285191154,2.90369,3443.9,3443.3,0.06294905]
[1721285192971,2.90369,3443.9,3443.0,5.32743]
[1721285193137,2.90369,3443.9,3443.4,0.06085074]
[1721285193341,2.90369,3443.9,3443.1,2.90435]
[1721285193593,2.90369,3443.9,3443.5,0.06085074]
[1721285193745,2.90369,3443.9,3443.1,2.90435]
[1721285193955,2.90369,3443.9,3443.6,0.06085074]
[1721285194175,2.9036,3444.0,3443.2,2.90425]
[1721285194362,2.9036,3444.0,3443.7,0.06085074]
[1721285194568,2.9036,3444.0,3443.3,2.3653]
[1721285194903,2.90347,3444.2,3443.3,5.26948]
[1721285195104,2.90313,3444.6,3443.6,2.90386]
[1721285195402,2.9032,3444.5,3443.7,2.92688107]
[1721285195590,2.90301,3444.7,3443.7,6.60882853]
[1721285195779,2.90301,3444.7,3443.8,2.4819]
[1721285195970,2.9031,3444.6,3443.8,2.4819]
[1721285196170,2.90319,3444.5,3443.9,0.06006455]
[1721285196376,3.193509,3444.5,3443.9,0.06006455]
[1721285197301,2.90327,3444.4,3443.9,0.06006455]
[1721285198409,2.90314,3444.6,3443.9,0.06006455]
[1721285199777,2.90314,3444.6,3443.9,3.06006455]
[1721285200388,3.682248,3444.6,3443.9,3.06006455]
[1721285200580,2.90314,3444.6,3443.9,5.96373455]
[1721285202180,2.90294,3444.8,3444.1,2.3944]
[1721285202384,2.90294,3444.8,3444.2,0.05992712]
[1721285202921,4.88785,3444.9,3444.3,2.3944]
[1721285203308,4.88785,3444.9,3444.4,0.05992712]
[1721285203507,2.90293,3444.8,3444.4,0.05992712]
[1721285207032,1.985,3444.5,3444.3,2.3944]
[1721285207199,1.985,3444.5,3444.4,0.05974739]
[1721285210405,2.90315,3444.6,3444.4,0.05974739]
[1721285211520,5.666912,3444.9,3444.4,0.05974739]
[1721285211743,4.88786,3444.9,3444.4,0.05974739]
[1721285214442,2.90293,3444.8,3444.4,0.05974739]
[1721285214643,2.90301,3444.7,3444.4,0.05974739]
[1721285214950,2.90311,3444.6,3444.4,0.05974739]
[1721285215155,3.682205,3444.6,3444.4,0.05974739]
[1721285215835,0.779095,3444.6,3444.4,0.05974739]
[1721285216004,4.88784,3444.9,3444.4,0.05974739]
[1721285216210,4.88784,3444.9,3444.3,2.3944]
[1721285216440,2.90297,3444.8,3444.3,2.3944]
[1721285216641,2.90297,3444.8,3444.4,0.05974739]
[1721285216846,2.90297,3444.8,3444.3,2.3944]
[1721285217144,2.90297,3444.8,3444.4,0.05974739]
[1721285217145,0.779081,3444.8,3444.4,0.05974739]
[1721285217351,2.90309,3444.6,3444.4,0.05974739]
[1721285218141,2.90317,3444.5,3444.4,0.05974739]
[1721285218543,2.90317,3444.5,3444.3,2.3944]
[1721285218750,2.90317,3444.5,3444.4,0.0597051]
[1721285218913,3.5616961,3444.5,3444.4,0.0597051]
[1721285223579,3.5616961,3444.5,3443.9,2.3766]
[1721285224062,3.5616961,3444.5,3444.0,0.05973328]
[1721285224463,2.90329,3444.4,3444.0,0.05973328]
[1721285224662,2.90351,3444.1,3444.0,0.05973328]
[1721285224869,3.484188,3444.1,3444.0,0.05973328]
[1721285225053,3.484188,3444.1,3443.9,2.3766]
[1721285225238,3.484188,3444.1,3444.0,0.05972624]
[1721285225438,2.90368,3444.0,3443.5,2.4789]
[1721285225747,2.90368,3444.0,3443.6,2.37832624]
[1721285225940,3.7409698,3443.9,3443.6,2.37832624]
[1721285229639,2.90369,3443.9,3443.6,2.37832624]
[1721285230681,2.90335,3444.3,3443.6,2.37832624]
[1721285230909,2.90344,3444.2,3443.6,2.37832624]
[1721285231048,2.90344,3444.2,3443.6,2.3186]
[1721285231247,5.80695,3444.2,3443.7,0.0599271]
[1721285231472,2.90353,3444.1,3443.7,0.0599271]
[1721285232068,2.90339,3444.3,3443.8,2.4219]
[1721285232525,4.88825,3444.5,3443.8,2.4219]
[1721285232805,2.90326,3444.4,3444.0,2.4219]
[1721285233394,2.90326,3444.4,3444.1,0.0599271]
[1721285234518,2.90335,3444.3,3444.1,0.0599271]
[1721285238811,2.9032,3444.5,3444.1,0.0599271]
[1721285240391,4.8882,3444.5,3444.1,0.0599271]
[1721285240596,2.90343,3444.2,3444.1,0.0599271]
[1721285242417,2.90343,3444.2,3444.0,2.4219]
[1721285242797,2.90343,3444.2,3444.1,0.05981434]
[1721285242990,2.90328,3444.4,3444.1,0.05981434]
[1721285243195,2.90284,3444.9,3444.2,2.2845]
[1721285243418,2.90293,3444.8,3444.2,2.2845]
[1721285243720,2.90293,3444.8,3444.3,0.05979319]
[1721285244091,2.90293,3444.8,3444.4,0.31037909]
[1721285244296,0.826,3444.7,3444.4,0.37017228]
[1721285244496,0.826,3444.5,3444.4,0.31037909]
[1721285246232,2.90286,3444.9,3444.4,0.31037909]
[1721285248242,2.90286,3444.9,3444.5,2.4955]
[1721285249700,2.90267,3445.1,3444.5,3.06643091]
[1721285249928,2.90267,3445.1,3444.5,2.4955]
[1721285253431,1.983,3445.2,3444.5,2.4955]
[1721285253635,2.9026,3445.2,3444.5,2.4955]
[1721285253949,2.90251,3445.3,3444.6,2.4073]
[1721285254504,2.90201,3445.9,3445.0,2.4073]
[1721285254712,2.90218,3445.7,3445.0,2.4073]
[1721285254932,2.90218,3445.7,3445.1,0.05934932]
[1721285256333,0.45509355,3445.6,3445.1,0.05934932]
[1721285256533,3.35736355,3445.6,3445.1,0.05934932]
[1721285258008,4.88558,3445.2,3445.1,0.05934932]
[1721285258311,4.88558,3445.2,3444.0,2.90355]
[1721285258312,2.90281,3445.0,3444.5,2.3109]
[1721285262241,2.90284,3444.9,3444.5,2.3109]
[1721285265240,2.903,3444.8,3444.2,2.2773]
[1721285265422,0.580584,3444.7,3444.2,2.2773]
[1721285265823,5.80634,3444.5,3443.5,7.3]
[1721285266064,5.80634,3444.5,3443.9,2.3923]
[1721285266432,2.90343,3444.2,3443.9,2.3923]
[1721285266759,2.90343,3444.2,3444.0,0.05761418]
[1721285268077,2.90351,3444.1,3444.0,0.05761418]
[1721285268243,6.586014,3444.1,3444.0,0.05761418]
[1721285268753,3.682504,3444.1,3444.0,0.05577286]
[1721285268932,2.90412,3443.4,3443.0,2.4466]
[1721285269664,2.90396,3443.6,3443.0,2.4466]
[1721285269830,4.8869,3443.7,3443.0,2.4466]
[1721285269831,2.90402,3443.5,3443.0,2.4466]
[1721285270031,2.90402,3443.5,3443.1,0.05577286]
[1721285272552,2.9041,3443.4,3443.1,0.05577286]
[1721285276971,2.90406,3443.5,3443.1,0.05577286]